[Event "2nd Kalyan Dombivali 2019"]
[Site "Kalyan"]
[Date "2019.02.01"]
[Round "6"]
[White "Akshit Jha"]
[Black "Agarwal Shyam"]
[Result "1/2-1/2"]
[ECO "C54"]
[WhiteElo "1604"]
[BlackElo "1409"]
[Annotator "NA RC"]
[PlyCount "93"]
[EventDate "2019.01.28"]
[EventType "swiss"]
[EventRounds "10"]
[EventCountry "IND"]
[SourceTitle "playchess.com"]
[Source "ChessBase"]
[SourceQuality "1"]
[TimeControl "5400+30"]

1. e4 {[%emt 0:00:00]} e5 {[%emt 0:00:00]} 2. Nf3 {[%emt 0:00:00]} Nc6 {[%emt 0:00:00]} 3. Bc4 {[%emt 0:00:00]} Bc5 {[%emt 0:00:00]} 4. c3 {[%emt 0:00:00]} Nf6 {[%emt 0:00:00]} 5. d3 {[%emt 0:00:00]} O-O {[%emt 0:00:39]} 6. Bg5 {[%emt 0:00:00]} Be7 {[%emt 0:03:16]} 7. Nbd2 {[%emt 0:00:43]} d6 {[%emt 0:01:15]} 8. Nf1 {[%emt 0:00:59]} h6 {[%emt 0:01:38]} 9. Bxf6 {[%emt 0:00:40]} Bxf6 {[%emt 0:00:38]} 10. Ne3 {[%emt 0:00:06]} Be6 {[%emt 0:02:47]} 11. g4 {[%emt 0:00:23]} Ne7 {[%emt 0:07:00]} 12. Bxe6 {[%emt 0:04:16]} fxe6 {[%emt 0:00:16]} 13. Qb3 {[%emt 0:03:17]} Qd7 {[%emt 0:09:47]} 14. h4 {[%emt 0:05:09]} Ng6 {[%emt 0:08:43]} 15. h5 {[%emt 0:07:22]} Nf4 {[%emt 0:04:40]} 16. O-O-O {[%emt 0:00:55]} c6 {[%emt 0:05:11]} 17. Qc2 {[%emt 0:02:32]} Qe7 {[%emt 0:03:50]} 18. d4 {[%emt 0:03:05]} exd4 {[%emt 0:01:21]} 19. Nxd4 {[%emt 0:00:35]} c5 {[%emt 0:06:18]} 20. Ne2 {[%emt 0:00:46]} Bg5 {[%emt 0:01:09]} 21. Kb1 {[%emt 0:05:11]} Nxe2 {[%emt 0:03:08]} 22. Qxe2 {[%emt 0:00:04]} Rad8 {[%emt 0:01:22]} 23. Rhf1 {[%emt 0:04:39]} d5 {[%emt 0:04:41]} 24. Ng2 {[%emt 0:07:58]} dxe4 {[%emt 0:03:21]} 25. Rxd8 {[%emt 0:00:06]} Qxd8 {[%emt 0:00:24]} 26. Qxe4 {[%emt 0:00:13]} Qd5 {[%emt 0:00:04]} 27. Qxd5 {[%emt 0:01:37]} exd5 {[%emt 0:00:02]} 28. f4 {[%emt 0:00:10]} Bf6 {[%emt 0:01:42]} 29. Kc2 {[%emt 0:01:24]} Re8 {[%emt 0:02:29]} 30. Kd3 {[%emt 0:03:11]} c4+ {[%emt 0:02:05]} 31. Kd2 {[%emt 0:00:32]} d4 {[%emt 0:02:04]} 32. Re1 {[%emt 0:02:32]} Kf7 {[%emt 0:03:02]} 33. Rxe8 {[%emt 0:00:55]} Kxe8 {[%emt 0:00:02]} 34. cxd4 {[%emt 0:00:06]} Bxd4 {[%emt 0:00:03]} 35. b3 {[%emt 0:00:10]} cxb3 {[%emt 0:02:02]} 36. axb3 {[%emt 0:00:03]} Ke7 {[%emt 0:01:52]} 37. Kd3 {[%emt 0:00:04]} Bf6 {[%emt 0:00:26]} 38. Ne3 {[%emt 0:01:50]} Kd6 {[%emt 0:02:02]} 39. Kc4 {[%emt 0:01:15]} Kc6 {[%emt 0:00:44]} 40. Kd3 {[%emt 0:06:00]} b5 {[%emt 0:01:29]} 41. b4 {[%emt 0:04:00]} Kd6 {[%emt 0:05:19]} 42. g5 {[%emt 0:13:01]} hxg5 {[%emt 0:02:45]} 43. fxg5 {[%emt 0:00:02]} Bxg5 {[%emt 0:00:55]} 44. Nf5+ {[%emt 0:00:04]} Kc6 {[%emt 0:00:58]} 45. Nxg7 {[%emt 0:00:40]} Kb6 {[%emt 0:00:36]} 46. Ne6 {[%emt 0:00:43]} Bh6 47. Ke4 1/2-1/2

[Event "2nd Kalyan Dombivali 2019"]
[Site "Kalyan"]
[Date "2019.02.01"]
[Round "6"]
[White "Govind Prabhu Mah"]
[Black "Ahmed, Feroz"]
[Result "0-1"]
[ECO "C65"]
[WhiteElo "1601"]
[BlackElo "1919"]
[Annotator "NA RC"]
[PlyCount "63"]
[EventDate "2019.01.28"]
[EventType "swiss"]
[EventRounds "10"]
[EventCountry "IND"]
[SourceTitle "playchess.com"]
[Source "ChessBase"]
[SourceQuality "1"]
[TimeControl "5400+30"]

{[%evp 9,63,1,33,-4,4,3,35,-2,0,-12,-13,-10,17,21,28,9,51,6,81,72,116,63,106,95,86,63,68,29,48,0,9,-8,37,47,39,27,44,16,8,-15,21,11,149,15,65,57,127,45,129,106,158,32767,-480,-1160,32767,-716]} 1. e4 {[%emt 0:00:05]} e5 {[%emt 0:00:00]} 2. Nf3 {[%emt 0:00:07]} Nc6 {[%emt 0:00:00]} 3. Bb5 {[%emt 0:00:05]} Nf6 {[%emt 0:00:23]} 4. d3 {[%emt 0:00:56]} Bc5 {[%emt 0:00:24]} 5. h3 {[%emt 0:00:47]} a6 {[%emt 0:06:30]} 6. Ba4 {[%emt 0:01:35]} (6. Bxc6 $5 dxc6 7. O-O $11) 6... b5 {[%emt 0:02:13]} 7. Bb3 {[%emt 0:00:03]} d5 {[%emt 0:00:17]} 8. Qe2 {[%emt 0:03:41]} dxe4 {[%emt 0:04:58]} 9. dxe4 {[%emt 0:00:10]} Bb7 {[%emt 0:00:19]} 10. c3 {[%emt 0:11:15]} Na5 {[%emt 0:05:59]} 11. Bc2 $1 {[%emt 0:00:31]} Bd6 {[%emt 0:04:46]} 12. Nbd2 {[%emt 0:01:17]} Qd7 {[%emt 0:04:13]} 13. b4 {[%emt 0:20:41]} Nc6 {[%emt 0:01:30]} (13... Qc6 $1 $11 14. Bb2 Nc4 15. Nxc4 bxc4) 14. a4 {[%emt 0:00:13]} Nd8 {[%emt 0:03:13]} ({Better is} 14... Ne7 $14) 15. Nb3 {[%emt 0:04:57]} Ne6 {[%emt 0:05:56]} 16. Na5 {[%emt 0:01:30]} Bc8 {[%emt 0:01:36]} 17. axb5 {[%emt 0:00:24]} axb5 {[%emt 0:00:41]} 18. Bd3 {[%emt 0:00:21]} (18. O-O $5 {[%cal Rf1d1]}) 18... Rb8 {[%emt 0:00:48]} 19. Nb3 {[%emt 0:01:55]} O-O {[%emt 0:02:05]} 20. O-O {[%emt 0:05:28]} Re8 {[%emt 0:03:04]} 21. Ra5 {[%emt 0:01:46]} c6 {[%emt 0:02:11]} 22. Rd1 {[%emt 0:06:18]} Qe7 {[%emt 0:03:52]} 23. g3 {[%emt 0:14:53]} Nf8 {[%emt 0:04:20]} 24. Qf1 {[%emt 0:04:05]} h6 {[%emt 0:06:40]} 25. Be3 {[%emt 0:01:18]} g5 {[%emt 0:08:49]} (25... Qc7 $11) 26. Nh2 {[%emt 0:02:46]} (26. Ra7 $16 Bd7 27. Na5) 26... Ng6 {[%emt 0:01:42]} 27. Bc2 {[%emt 0:00:30]} Kg7 {[%emt 0:01:18]} (27... Rd8 $14) 28. Bc5 {[%emt 0:04:33]} ({Better is} 28. Ra7 $16 Rb7 29. Na5 Rxa7 30. Nxc6 {[%mdl 64] Double Attack}) 28... Rd8 {[%emt 0:01:01] [#]} (28... Bxc5 $14 29. Nxc5 Be6) 29. Ra7 $1 {[%emt 0:01:08]} Qf8 {[%emt 0:01:38] [#]} 30. Qd3 $2 {[%emt 0:07:13]} (30. Bxd6 $1 $16 {and life is bright.} Rxd6 31. Nc5) 30... Bxc5 {[%emt 0:01:19]} 31. Qf1 (31. Qxd8 $142 Qxd8 32. Nxc5) 31... Bd6 32. Nc5 $19 (32. Na5 $142 Rd7 33. Rxd7 Bxd7 34. Qd3) 0-1

[Event "2nd Kalyan Dombivali 2019"]
[Site "Kalyan"]
[Date "2019.02.01"]
[Round "6"]
[White "Pingale Shivraj"]
[Black "Bhat Sanjay"]
[Result "1/2-1/2"]
[ECO "C29"]
[WhiteElo "1580"]
[BlackElo "1597"]
[Annotator "NA RC"]
[PlyCount "50"]
[EventDate "2019.01.28"]
[EventType "swiss"]
[EventRounds "10"]
[EventCountry "IND"]
[SourceTitle "playchess.com"]
[Source "ChessBase"]
[SourceQuality "1"]
[TimeControl "5400+30"]

1. e4 {[%emt 0:00:00]} e5 {[%emt 0:01:11]} 2. Nc3 {[%emt 0:00:00]} Nf6 {[%emt 0:00:02]} 3. f4 {[%emt 0:00:00]} d5 {[%emt 0:00:03]} 4. fxe5 {[%emt 0:00:00]} Nxe4 {[%emt 0:00:04]} 5. d3 {[%emt 0:00:00]} Nxc3 {[%emt 0:00:07]} 6. bxc3 {[%emt 0:00:00]} Be7 {[%emt 0:00:27]} 7. Nf3 {[%emt 0:00:06]} c5 {[%emt 0:02:40]} 8. d4 {[%emt 0:07:05]} O-O {[%emt 0:00:06]} 9. Be2 {[%emt 0:03:09]} f6 {[%emt 0:07:49]} 10. O-O {[%emt 0:04:17]} Nc6 {[%emt 0:01:21]} 11. Bf4 {[%emt 0:03:40]} c4 {[%emt 0:16:03]} 12. Qe1 {[%emt 0:04:17]} Bf5 {[%emt 0:03:38]} 13. Qg3 {[%emt 0:07:47]} Kh8 {[%emt 0:03:37]} 14. Rac1 {[%emt 0:14:37]} Qa5 {[%emt 0:09:50]} 15. Nh4 {[%emt 0:05:21]} Be4 {[%emt 0:01:17]} 16. exf6 {[%emt 0:11:39]} Bxf6 {[%emt 0:06:17]} 17. Bd6 {[%emt 0:01:28]} Be7 {[%emt 0:02:26]} 18. Bxe7 {[%emt 0:01:44]} Nxe7 {[%emt 0:00:04]} 19. Rfe1 {[%emt 0:05:43]} Ng8 {[%emt 0:11:16]} 20. Bxc4 {[%emt 0:11:56]} Nf6 {[%emt 0:02:04]} 21. Qh3 {[%emt 0:02:56]} Rfe8 {[%emt 0:12:58]} 22. Bf1 {[%emt 0:02:07]} Qa4 23. a3 Qxa3 {[%emt 0:04:50]} 24. Ra1 Qa2 25. Re2 Qxc2 1/2-1/2

[Event "2nd Kalyan Dombivali 2019"]
[Site "Kalyan"]
[Date "2019.02.01"]
[Round "6"]
[White "Lund Rachit"]
[Black "Sparsh Khandelwal"]
[Result "1-0"]
[ECO "B27"]
[WhiteElo "1572"]
[BlackElo "1823"]
[Annotator "NA RC"]
[PlyCount "63"]
[EventDate "2019.01.28"]
[EventType "swiss"]
[EventRounds "10"]
[EventCountry "IND"]
[SourceTitle "playchess.com"]
[Source "ChessBase"]
[SourceQuality "1"]
[TimeControl "5400+30"]

{[%evp 8,58,27,5,15,0,7,-8,9,-7,0,-2,10,1,15,0,34,31,55,57,55,29,42,24,15,16,38,5,0,12,25,0,81,39,45,45,50,32767,32767,32767,32767,121,113,65,158,175,613,697,805,838,29994,-301,29995]} 1. e4 {[%emt 0:00:34]} c5 {[%emt 0:00:22]} 2. Nf3 {[%emt 0:05:28]} g6 {[%emt 0:01:15]} 3. d4 {[%emt 0:01:12]} cxd4 {[%emt 0:00:10]} 4. Qxd4 {[%emt 0:01:41]} Nf6 {[%emt 0:00:06]} 5. Nc3 {[%emt 0:05:18]} Nc6 {[%emt 0:00:23]} 6. Qd1 {[%emt 0:01:01]} Bg7 {[%emt 0:02:50]} 7. Bc4 {[%emt 0:05:27]} O-O {[%emt 0:02:44]} 8. O-O {[%emt 0:00:57]} d6 {[%emt 0:02:03]} 9. h3 {[%emt 0:02:06]} a6 {[%emt 0:04:07]} 10. a4 {[%emt 0:18:34]} Na5 {[%emt 0:08:43]} 11. Ba2 {[%emt 0:11:18]} Nd7 {[%emt 0:06:42]} 12. Be3 {[%emt 0:08:35]} Nc5 {[%emt 0:13:01]} 13. Bd4 {[%emt 0:03:10]} Bxd4 {[%emt 0:00:38]} 14. Nxd4 {[%emt 0:10:54]} Nc6 {[%emt 0:00:31]} 15. Nxc6 {[%emt 0:03:58]} bxc6 {[%emt 0:00:06]} 16. b4 {[%emt 0:00:37]} Ne6 {[%emt 0:00:51]} 17. a5 {[%emt 0:01:26]} Rb8 {[%emt 0:10:12]} 18. Rb1 {[%emt 0:01:13]} c5 {[%emt 0:04:15]} 19. Nd5 {[%emt 0:01:14]} Bb7 {[%emt 0:02:44]} (19... cxb4 $11 {remains equal.} 20. Nb6 Nf4) 20. c3 {[%emt 0:00:37]} Nc7 {[%emt 0:03:17]} 21. Re1 {[%emt 0:02:15]} Nb5 {[%emt 0:02:16]} 22. Qd2 {[%emt 0:01:13]} Bxd5 {[%emt 0:00:06]} 23. exd5 {[%emt 0:00:35]} Re8 {[%emt 0:00:17]} 24. Re4 {[%emt 0:00:23]} Qc7 {[%emt 0:00:17]} 25. Rh4 {[%emt 0:00:47]} e5 {[%emt 0:02:38]} (25... cxb4 $1 $14 26. Qh6 (26. Rbxb4 Qxc3 27. Qh6 Qh8 $15) 26... Qxc3) 26. bxc5 {[%emt 0:09:01]} Qxa5 $2 {[%emt 0:02:47]} (26... h5) 27. Qh6 {[%emt 0:03:24]} Qxa2 {[%emt 0:00:05] [#]} 28. Rxb5 $1 {[%emt 0:00:04]} axb5 {[%emt 0:12:54]} 29. Qxh7+ {[%emt 0:00:23]} Kf8 {[%emt 0:00:02]} 30. cxd6 {[%emt 0:00:14]} f6 {[%emt 0:00:29]} 31. Qh8+ {[%emt 0:00:07]} Kf7 {[%emt 0:00:04]} 32. Rh7# {[%emt 0:00:02] Ra8} 1-0

[Event "2nd Kalyan Dombivali 2019"]
[Site "Kalyan"]
[Date "2019.02.01"]
[Round "6"]
[White "Kasar Prashant"]
[Black "Subramanian, R M"]
[Result "0-1"]
[ECO "C67"]
[WhiteElo "1495"]
[BlackElo "1780"]
[Annotator "NA RC"]
[PlyCount "78"]
[EventDate "2019.01.28"]
[EventType "swiss"]
[EventRounds "10"]
[EventCountry "IND"]
[SourceTitle "playchess.com"]
[Source "ChessBase"]
[SourceQuality "1"]
[TimeControl "5400+30"]

1. e4 {[%emt 0:01:34]} e5 {[%emt 0:00:00]} 2. Nf3 {[%emt 0:00:07]} Nc6 {[%emt 0:00:00]} 3. Bb5 {[%emt 0:00:05]} Nf6 {[%emt 0:00:00]} 4. O-O {[%emt 0:02:46]} Nxe4 {[%emt 0:00:00]} 5. d4 {[%emt 0:00:07]} Nd6 {[%emt 0:00:00]} 6. Bxc6 {[%emt 0:00:12]} dxc6 {[%emt 0:00:00]} 7. dxe5 {[%emt 0:00:18]} Nf5 {[%emt 0:00:00]} 8. Nc3 {[%emt 0:06:35]} Qxd1 {[%emt 0:02:25]} 9. Rxd1 {[%emt 0:00:06]} Bd7 {[%emt 0:00:13]} 10. Ng5 {[%emt 0:03:25]} h6 {[%emt 0:06:16]} 11. Nge4 {[%emt 0:09:24]} O-O-O {[%emt 0:02:41]} 12. f4 {[%emt 0:04:38]} h5 {[%emt 0:03:51]} 13. Ng5 {[%emt 0:04:42]} Bc5+ {[%emt 0:00:18]} 14. Kf1 {[%emt 0:02:50]} Be6 {[%emt 0:00:27]} 15. Nxe6 {[%emt 0:03:32]} fxe6 {[%emt 0:00:04]} 16. Bd2 {[%emt 0:01:53]} Be3 {[%emt 0:08:20]} 17. Ke2 {[%emt 0:00:20]} Rxd2+ {[%emt 0:00:16]} 18. Rxd2 {[%emt 0:01:12]} Bxd2 {[%emt 0:00:02]} 19. Kxd2 {[%emt 0:00:03]} Rd8+ {[%emt 0:00:04]} 20. Ke1 {[%emt 0:16:04]} Ne3 {[%emt 0:00:28]} 21. Ke2 {[%emt 0:01:09]} Nxc2 {[%emt 0:01:07]} 22. Rd1 {[%emt 0:00:24]} Nd4+ {[%emt 0:01:24]} 23. Kf2 {[%emt 0:00:24]} c5 {[%emt 0:02:33]} 24. Ne4 {[%emt 0:00:13]} b6 {[%emt 0:00:08]} 25. h3 {[%emt 0:01:05]} h4 {[%emt 0:00:37]} 26. Ng5 {[%emt 0:03:16]} a5 {[%emt 0:06:15]} 27. a4 {[%emt 0:01:06]} c6 {[%emt 0:01:47]} 28. Ne4 {[%emt 0:00:07]} Kc7 {[%emt 0:01:00]} 29. Ng5 {[%emt 0:00:35]} Rd5 {[%emt 0:05:47]} 30. Ne4 {[%emt 0:02:39]} b5 {[%emt 0:00:53]} 31. axb5 {[%emt 0:07:14]} cxb5 {[%emt 0:00:09]} 32. Nxc5 {[%emt 0:02:07]} Rxc5 {[%emt 0:00:40]} 33. Rxd4 {[%emt 0:00:01]} Rc2+ {[%emt 0:00:09]} 34. Kf3 {[%emt 0:00:01]} Rxb2 {[%emt 0:00:06]} 35. Rd6 {[%emt 0:00:13]} a4 {[%emt 0:01:10]} 36. Rxe6 {[%emt 0:00:02]} a3 {[%emt 0:00:03]} 37. Ra6 {[%emt 0:00:40]} a2 {[%emt 0:00:18]} 38. f5 {[%emt 0:00:20]} b4 {[%emt 0:05:27]} 39. e6 {[%emt 0:00:53]} Rb3+ {[%emt 0:00:26]} 0-1

[Event "2nd Kalyan Dombivali 2019"]
[Site "Kalyan"]
[Date "2019.02.01"]
[Round "6"]
[White "Kamble Dipankar"]
[Black "Javheri, Jaydev"]
[Result "1-0"]
[ECO "B21"]
[WhiteElo "1487"]
[BlackElo "1675"]
[Annotator "NA RC"]
[PlyCount "93"]
[EventDate "2019.01.28"]
[EventType "swiss"]
[EventRounds "10"]
[EventCountry "IND"]
[SourceTitle "playchess.com"]
[Source "ChessBase"]
[SourceQuality "1"]
[TimeControl "5400+30"]

1. e4 {[%emt 0:12:15]} c5 {[%emt 0:00:00]} 2. d4 {[%emt 0:13:31]} cxd4 {[%emt 0:01:59]} 3. c3 {[%emt 0:00:02]} d6 {[%emt 0:05:16]} 4. Nf3 {[%emt 0:01:28]} g6 {[%emt 0:03:04]} 5. Qxd4 {[%emt 0:00:39]} Nf6 {[%emt 0:01:59]} 6. e5 {[%emt 0:02:03]} dxe5 {[%emt 0:03:51]} 7. Qxd8+ {[%emt 0:02:35]} Kxd8 {[%emt 0:00:06]} 8. Nxe5 {[%emt 0:00:25]} Ke8 {[%emt 0:00:03]} 9. Bc4 {[%emt 0:04:20]} e6 {[%emt 0:00:05]} 10. Bg5 {[%emt 0:00:09]} Bg7 {[%emt 0:00:09]} 11. Na3 {[%emt 0:00:29]} a6 {[%emt 0:00:44]} 12. O-O-O {[%emt 0:03:33]} h6 {[%emt 0:02:29]} 13. Bh4 {[%emt 0:00:20]} g5 {[%emt 0:02:02]} 14. Bg3 {[%emt 0:00:02]} Ne4 {[%emt 0:01:09]} 15. Rhe1 {[%emt 0:00:59]} Nxg3 {[%emt 0:02:14]} 16. hxg3 {[%emt 0:00:31]} Bxe5 {[%emt 0:01:50]} 17. Rxe5 {[%emt 0:00:49]} Nc6 {[%emt 0:00:12]} 18. Re3 {[%emt 0:06:24]} b5 {[%emt 0:08:51]} 19. Be2 {[%emt 0:06:15]} Ke7 {[%emt 0:03:39]} 20. Red3 {[%emt 0:02:32]} Ra7 {[%emt 0:04:39]} 21. Rd6 {[%emt 0:02:27]} Ne5 {[%emt 0:04:52]} 22. Nc2 {[%emt 0:00:41]} Rd7 {[%emt 0:03:58]} 23. Rxd7+ {[%emt 0:00:17]} Nxd7 {[%emt 0:00:17]} 24. Nb4 {[%emt 0:02:34]} Nb8 {[%emt 0:01:09]} 25. Bf3 {[%emt 0:01:36]} f5 {[%emt 0:05:57]} 26. g4 {[%emt 0:04:23]} f4 {[%emt 0:03:11]} 27. Nd3 {[%emt 0:03:01]} Nd7 {[%emt 0:03:10]} 28. Re1 {[%emt 0:03:53]} Kf6 {[%emt 0:00:56]} 29. Kc2 {[%emt 0:03:58]} Rd8 {[%emt 0:02:27]} 30. Rh1 {[%emt 0:01:17]} Kg7 {[%emt 0:04:27]} 31. a4 {[%emt 0:00:02]} bxa4 {[%emt 0:00:52]} 32. Ra1 {[%emt 0:00:31]} Nb6 {[%emt 0:00:36]} 33. Nc5 {[%emt 0:00:01]} Rd6 {[%emt 0:08:22]} 34. Nxa4 {[%emt 0:02:17]} Nxa4 {[%emt 0:01:31]} 35. Rxa4 {[%emt 0:00:16]} Bd7 {[%emt 0:00:37]} 36. Rc4 {[%emt 0:04:24]} Bb5 {[%emt 0:00:19]} 37. Rc7+ {[%emt 0:00:02]} Kf6 {[%emt 0:00:09]} 38. c4 {[%emt 0:01:37]} Be8 {[%emt 0:01:43]} 39. c5 {[%emt 0:05:12]} Bg6+ {[%emt 0:01:00]} 40. Kc1 {[%emt 0:00:02]} Rd4 {[%emt 0:00:39]} 41. c6 {[%emt 0:02:25]} e5 {[%emt 0:02:34]} 42. Be2 {[%emt 0:01:50]} Be4 {[%emt 0:08:43]} 43. f3 {[%emt 0:01:22]} Bd5 {[%emt 0:01:17]} 44. Rh7 {[%emt 0:01:40]} Kg6 {[%emt 0:01:28]} 45. c7 {[%emt 0:01:05]} Bb7 {[%emt 0:02:37]} 46. Rh8 {[%emt 0:00:13]} Ra4 {[%emt 0:01:42]} 47. Rb8 {[%emt 0:00:34]} 1-0

[Event "2nd Kalyan Dombivali 2019"]
[Site "Kalyan"]
[Date "2019.02.01"]
[Round "6"]
[White "Balkawade Sai"]
[Black "Ankur Mahesh Gokhale"]
[Result "0-1"]
[ECO "A52"]
[WhiteElo "1482"]
[BlackElo "1628"]
[Annotator "NA RC"]
[PlyCount "108"]
[EventDate "2019.01.28"]
[EventType "swiss"]
[EventRounds "10"]
[EventCountry "IND"]
[SourceTitle "playchess.com"]
[Source "ChessBase"]
[SourceQuality "1"]
[TimeControl "5400+30"]

1. d4 {[%emt 0:00:00]} Nf6 {[%emt 0:00:00]} 2. c4 {[%emt 0:00:00]} e5 {[%emt 0:00:00]} 3. dxe5 {[%emt 0:00:58]} Ng4 {[%emt 0:00:00]} 4. Nf3 {[%emt 0:01:13]} Bc5 {[%emt 0:00:00]} 5. e3 {[%emt 0:01:04]} Nc6 {[%emt 0:00:00]} 6. Be2 {[%emt 0:02:09]} O-O {[%emt 0:00:07]} 7. O-O {[%emt 0:00:32]} Re8 {[%emt 0:00:03]} 8. Nc3 {[%emt 0:02:03]} Ngxe5 {[%emt 0:00:08]} 9. Nxe5 {[%emt 0:00:12]} Nxe5 {[%emt 0:00:06]} 10. b3 {[%emt 0:01:05]} a5 {[%emt 0:00:06]} 11. Bb2 {[%emt 0:01:09]} Ra6 {[%emt 0:00:19]} 12. Qd5 {[%emt 0:00:51]} Ba7 {[%emt 0:02:04]} 13. c5 {[%emt 0:03:03]} Rh6 {[%emt 0:01:51]} 14. f4 {[%emt 0:05:12]} Qh4 {[%emt 0:07:56]} 15. fxe5 {[%emt 0:30:12]} Qxh2+ {[%emt 0:00:34]} 16. Kf2 {[%emt 0:00:10]} Rxe5 {[%emt 0:02:19]} 17. Rh1 {[%emt 0:05:22]} Rxd5 {[%emt 0:00:46]} 18. Rxh2 Rf5+ {[%emt 0:00:15]} 19. Kg1 {[%emt 0:03:43]} Bxc5 {[%emt 0:00:29]} 20. Nd1 {[%emt 0:05:37]} Rxh2 {[%emt 0:04:40]} 21. Kxh2 {[%emt 0:00:02]} b6 {[%emt 0:00:51]} 22. Rc1 {[%emt 0:09:18]} Bb7 {[%emt 0:00:46]} 23. a3 {[%emt 0:00:42]} Rg5 {[%emt 0:00:53]} 24. g4 {[%emt 0:01:55]} h5 {[%emt 0:00:47]} 25. Kh3 {[%emt 0:06:07]} hxg4+ {[%emt 0:00:35]} 26. Bxg4 {[%emt 0:00:15]} f5 {[%emt 0:00:36]} 27. Be2 {[%emt 0:01:03]} Bg2+ {[%emt 0:01:14]} 28. Kh2 {[%emt 0:01:39]} Bd6+ {[%emt 0:02:39]} 29. Kg1 {[%emt 0:00:14]} Bd5+ {[%emt 0:00:46]} 30. Kf2 {[%emt 0:00:37]} Bxb3 {[%emt 0:01:28]} 31. Bc4+ {[%emt 0:01:56]} Bxc4 {[%emt 0:00:02]} 32. Rxc4 {[%emt 0:00:02]} Rh5 {[%emt 0:00:17]} 33. a4 {[%emt 0:09:30]} Kf7 {[%emt 0:01:01]} 34. Kf3 {[%emt 0:03:09]} Rh3+ {[%emt 0:00:13]} 35. Kg2 {[%emt 0:00:20]} Rh2+ {[%emt 0:00:05]} 36. Kf3 {[%emt 0:00:11]} Rd2 {[%emt 0:00:08]} 37. Rd4 {[%emt 0:02:10]} Rh2 {[%emt 0:00:18]} 38. e4 {[%emt 0:03:42]} Rh3+ {[%emt 0:01:37]} 39. Kg2 {[%emt 0:00:37]} Rg3+ {[%emt 0:00:07]} 40. Kf1 {[%emt 0:00:17]} Ke6 {[%emt 0:05:41]} 41. exf5+ {[%emt 0:00:45]} Kxf5 {[%emt 0:00:08]} 42. Rc4 {[%emt 0:00:57]} Bc5 {[%emt 0:00:29]} 43. Bc1 {[%emt 0:00:21]} g5 {[%emt 0:00:38]} 44. Bd2 {[%emt 0:00:34]} d5 {[%emt 0:00:18]} 45. Rc2 {[%emt 0:00:23]} d4 {[%emt 0:01:55]} 46. Nf2 {[%emt 0:00:26]} Rf3 {[%emt 0:00:24]} 47. Kg2 {[%emt 0:00:50]} g4 {[%emt 0:01:08]} 48. Rc4 {[%emt 0:00:27]} Ra3 {[%emt 0:01:12]} 49. Bxa5 {[%emt 0:00:31]} g3 {[%emt 0:00:24]} 50. Nh1 {[%emt 0:00:30]} Kg4 {[%emt 0:00:12]} 51. Be1 {[%emt 0:00:49]} Ra2+ {[%emt 0:00:14]} 52. Kg1 {[%emt 0:00:25]} Kf3 {[%emt 0:03:03]} 53. Bxg3 {[%emt 0:00:19]} d3+ {[%emt 0:00:27]} 54. Kf1 {[%emt 0:00:11]} Ra1+ {[%emt 0:00:11]} 0-1

[Event "2nd Kalyan Dombivali 2019"]
[Site "Kalyan"]
[Date "2019.02.01"]
[Round "6"]
[White "Om Nagnath Lamkane"]
[Black "Shivshankar Iyer S"]
[Result "0-1"]
[ECO "B34"]
[WhiteElo "1400"]
[BlackElo "1619"]
[Annotator "NA RC"]
[PlyCount "100"]
[EventDate "2019.01.28"]
[EventType "swiss"]
[EventRounds "10"]
[EventCountry "IND"]
[SourceTitle "playchess.com"]
[Source "ChessBase"]
[SourceQuality "1"]
[TimeControl "5400+30"]

1. e4 {[%emt 0:00:00]} c5 {[%emt 0:00:00]} 2. Nf3 {[%emt 0:00:00]} Nc6 {[%emt 0:00:00]} 3. d4 {[%emt 0:00:03]} cxd4 {[%emt 0:00:00]} 4. Nxd4 {[%emt 0:00:07]} Nf6 {[%emt 0:00:00]} 5. Nc3 {[%emt 0:00:11]} e5 {[%emt 0:00:00]} 6. Ndb5 {[%emt 0:00:33]} d6 {[%emt 0:00:00]} 7. Nd5 {[%emt 0:00:47]} Nxd5 {[%emt 0:00:02]} 8. exd5 {[%emt 0:00:03]} Ne7 {[%emt 0:00:06]} 9. c4 {[%emt 0:00:18]} Ng6 {[%emt 0:00:08]} 10. Be2 {[%emt 0:00:27]} Be7 {[%emt 0:00:33]} 11. O-O {[%emt 0:00:09]} O-O {[%emt 0:00:13]} 12. Nc3 {[%emt 0:00:47]} f5 {[%emt 0:02:43]} 13. Qc2 {[%emt 0:07:38]} b6 {[%emt 0:15:13]} 14. f4 {[%emt 0:02:33]} Bf6 {[%emt 0:11:00]} 15. Bd3 {[%emt 0:05:47]} e4 {[%emt 0:08:39]} 16. Be2 {[%emt 0:00:48]} Bd4+ {[%emt 0:04:26]} 17. Kh1 {[%emt 0:00:13]} Bd7 {[%emt 0:00:06]} 18. Nd1 {[%emt 0:00:37]} Rc8 {[%emt 0:05:35]} 19. Be3 {[%emt 0:03:45]} Bf6 {[%emt 0:00:07]} 20. Qd2 {[%emt 0:00:41]} h6 {[%emt 0:01:49]} 21. Bd4 {[%emt 0:00:38]} Nh8 {[%emt 0:01:41]} 22. Bxf6 {[%emt 0:03:10]} Qxf6 {[%emt 0:00:06]} 23. Ne3 {[%emt 0:00:49]} g5 {[%emt 0:03:06]} 24. g4 {[%emt 0:39:14]} gxf4 {[%emt 0:00:35]} 25. Nxf5 {[%emt 0:02:58]} e3 {[%emt 0:02:24]} 26. Qc2 {[%emt 0:02:17]} Bxf5 {[%emt 0:12:19]} 27. gxf5 {[%emt 0:01:12]} Qe5 {[%emt 0:00:27]} 28. Rg1+ {[%emt 0:03:13]} Kf7 {[%emt 0:00:04]} 29. Bh5+ {[%emt 0:02:24]} Kf6 {[%emt 0:00:05]} 30. Qg2 {[%emt 0:03:11]} Rg8 {[%emt 0:01:46]} 31. Qf3 {[%emt 0:05:25]} Rxg1+ {[%emt 0:02:24]} 32. Rxg1 {[%emt 0:00:57]} Rxc4 {[%emt 0:07:56]} 33. Qg2 {[%emt 0:00:29]} Ke7 {[%emt 0:02:10]} 34. Qg7+ {[%emt 0:05:08]} Qxg7 {[%emt 0:00:05]} 35. Rxg7+ {[%emt 0:00:07]} Kf6 {[%emt 0:00:18]} 36. Rh7 {[%emt 0:00:48]} Kg5 {[%emt 0:00:17]} 37. Bf3 {[%emt 0:00:58]} Rc1+ {[%emt 0:03:34]} 38. Kg2 {[%emt 0:00:11]} Rc2+ {[%emt 0:00:13]} 39. Kg1 {[%emt 0:00:29]} Rf2 {[%emt 0:01:03]} 40. h4+ {[%emt 0:03:31]} Kxf5 {[%emt 0:01:18]} 41. Bh5 {[%emt 0:01:08]} f3 {[%emt 0:01:23]} 42. Rxh8 {[%emt 0:00:41]} Rg2+ {[%emt 0:03:13]} 43. Kh1 {[%emt 0:00:07]} e2 {[%emt 0:01:03]} 44. Re8 {[%emt 0:01:21]} Rg8 {[%emt 0:02:12]} 45. Re3 {[%emt 0:01:50]} Rc8 {[%emt 0:00:53]} 46. Kg1 {[%emt 0:00:44]} Rc1+ {[%emt 0:00:19]} 47. Kf2 {[%emt 0:00:26]} Rf1+ {[%emt 0:00:09]} 48. Kg3 {[%emt 0:00:24]} e1=Q+ {[%emt 0:00:27]} 49. Rxe1 {[%emt 0:00:50]} Rxe1 {[%emt 0:00:00]} 50. Bxf3 {[%emt 0:00:15]} Ra1 {[%emt 0:00:00]} 0-1